[Event "*** Titled Tuesday Blitz AM"]
[Site "Chess.com"]
[Date "2020.01.07"]
[Round "5"]
[White "nouma78"]
[Black "XxPetroffsxX"]
[Result "1-0"]
[WhiteElo "2531"]
[BlackElo "1985"]
[TimeControl "180+2"]
[EndTime "10:05:54 PST"]
[Termination "nouma78 won by resignation"]

1. d4 {[%clk 0:02:56.6]} 1... d5 {[%clk 0:02:59.9]} 2. c4 {[%clk 0:02:57.8]}
2... e6 {[%clk 0:03:00.1]} 3. Nc3 {[%clk 0:02:58.9]} 3... Nf6 {[%clk 0:03:00.9]}
4. cxd5 {[%clk 0:02:59.8]} 4... exd5 {[%clk 0:03:01.4]} 5. Bg5 {[%clk
0:03:01.2]} 5... Be7 {[%clk 0:02:59.7]} 6. Qc2 {[%clk 0:03:01.2]} 6... c6 {[%clk
0:03:00.5]} 7. e3 {[%clk 0:03:02.5]} 7... O-O {[%clk 0:03:00.6]} 8. Bd3 {[%clk
0:03:03.5]} 8... h6 {[%clk 0:03:00.1]} 9. Bh4 {[%clk 0:03:03.3]} 9... Re8 {[%clk
0:03:00.5]} 10. Nge2 {[%clk 0:03:03.1]} 10... Ne4 {[%clk 0:02:57.3]} 11. Bxe7
{[%clk 0:03:02.1]} 11... Qxe7 {[%clk 0:02:57.9]} 12. O-O {[%clk 0:02:58.1]}
12... Nd7 {[%clk 0:02:51.6]} 13. Rae1 {[%clk 0:02:58.5]} 13... Ndf6 {[%clk
0:02:50.7]} 14. f3 {[%clk 0:02:59]} 14... Nxc3 {[%clk 0:02:49.7]} 15. Nxc3
{[%clk 0:03:00]} 15... b5 {[%clk 0:02:18.6]} 16. Qf2 {[%clk 0:02:56.6]} 16... b4
{[%clk 0:02:18.2]} 17. Na4 {[%clk 0:02:56.3]} 17... a5 {[%clk 0:02:15.8]} 18.
Re2 {[%clk 0:02:52.6]} 18... Ba6 {[%clk 0:02:16.2]} 19. Bxa6 {[%clk 0:02:53]}
19... Rxa6 {[%clk 0:02:16.8]} 20. Rc1 {[%clk 0:02:54.3]} 20... Nd7 {[%clk
0:02:16.3]} 21. Rcc2 {[%clk 0:02:48.1]} 21... Rc8 {[%clk 0:02:14.9]} 22. Qe1
{[%clk 0:02:44.8]} 22... c5 {[%clk 0:02:14.4]} 23. dxc5 {[%clk 0:02:38.1]} 23...
Nxc5 {[%clk 0:02:13.8]} 24. Rxc5 {[%clk 0:02:25.1]} 24... Rxc5 {[%clk
0:02:13.2]} 25. Nxc5 {[%clk 0:02:26.4]} 25... Qxc5 {[%clk 0:02:13.9]} 26. Rd2
{[%clk 0:02:20]} 26... Re6 {[%clk 0:02:10.8]} 27. Kf2 {[%clk 0:02:21.2]} 27...
f5 {[%clk 0:01:58]} 28. Rd4 {[%clk 0:02:18.6]} 28... Qxd4 {[%clk 0:01:35]} 29.
exd4 {[%clk 0:02:19.5]} 29... Rxe1 {[%clk 0:01:34.2]} 30. Kxe1 {[%clk
0:02:21.4]} 30... Kf7 {[%clk 0:01:33.1]} 31. Kd2 {[%clk 0:02:14.4]} 31... f4
{[%clk 0:01:28.8]} 32. Kc2 {[%clk 0:02:12.8]} 32... a4 {[%clk 0:01:28.5]} 33. a3
{[%clk 0:02:12.4]} 33... Ke6 {[%clk 0:01:18.8]} 34. axb4 {[%clk 0:02:11.8]}
34... Kd6 {[%clk 0:01:19.5]} 35. Kb1 {[%clk 0:02:07.2]} 35... Kc6 {[%clk
0:01:19.5]} 36. Ka2 {[%clk 0:02:08.2]} 36... Kb5 {[%clk 0:01:20.2]} 37. Ka3
{[%clk 0:02:09.5]} 37... g5 {[%clk 0:01:18.1]} 38. b3 {[%clk 0:02:08.9]} 38...
axb3 {[%clk 0:01:13.6]} 39. Kxb3 {[%clk 0:02:09.9]} 39... h5 {[%clk 0:01:15.1]}
40. h3 {[%clk 0:01:54.9]} 40... h4 {[%clk 0:01:00.3]} 41. Ka3 {[%clk 0:01:38.9]}
41... Kc4 {[%clk 0:00:57.9]} 42. Ka4 {[%clk 0:01:40]} 42... Kxd4 {[%clk
0:00:57.8]} 43. b5 {[%clk 0:01:41.4]} 43... Kc5 {[%clk 0:00:58.2]} 44. Ka5
{[%clk 0:01:40.9]} 44... d4 {[%clk 0:00:59.2]} 45. b6 {[%clk 0:01:42.3]} 45...
Kc6 {[%clk 0:00:58.6]} 46. Ka6 {[%clk 0:01:43]} 46... d3 {[%clk 0:01:00.1]} 47.
b7 {[%clk 0:01:44]} 47... d2 {[%clk 0:01:01.5]} 48. b8=Q {[%clk 0:01:44.4]}
48... d1=Q {[%clk 0:00:52.8]} 49. Qc8+ {[%clk 0:01:45.4]} 1-0

[Event "*** Titled Tuesday Blitz AM"]
[Site "Chess.com"]
[Date "2020.01.07"]
[Round "5"]
[White "mikhaillushenkov"]
[Black "hansen"]
[Result "0-1"]
[WhiteElo "2647"]
[BlackElo "2902"]
[TimeControl "180+2"]
[EndTime "10:05:55 PST"]
[Termination "hansen won by resignation"]

1. Nf3 {[%clk 0:03:01.9]} 1... d5 {[%clk 0:02:59.3]} 2. e3 {[%clk 0:03:01.3]}
2... g6 {[%clk 0:03:00.2]} 3. c4 {[%clk 0:03:01.9]} 3... c6 {[%clk 0:03:01.5]}
4. Nc3 {[%clk 0:03:00.4]} 4... Nf6 {[%clk 0:03:01]} 5. d4 {[%clk 0:02:59.2]}
5... Bg7 {[%clk 0:03:01.8]} 6. Be2 {[%clk 0:03:00.3]} 6... O-O {[%clk
0:03:02.7]} 7. O-O {[%clk 0:03:01.8]} 7... Bg4 {[%clk 0:03:04.1]} 8. cxd5 {[%clk
0:03:02.4]} 8... Nxd5 {[%clk 0:03:02.2]} 9. Nxd5 {[%clk 0:03:02.1]} 9... Qxd5
{[%clk 0:03:03.4]} 10. h3 {[%clk 0:03:01.2]} 10... Bf5 {[%clk 0:03:02]} 11. Bd2
{[%clk 0:02:57.4]} 11... Nd7 {[%clk 0:03:01.8]} 12. Bc3 {[%clk 0:02:58.1]} 12...
Be4 {[%clk 0:02:54.2]} 13. Ne1 {[%clk 0:02:45]} 13... Qd6 {[%clk 0:02:51.1]} 14.
Bf3 {[%clk 0:02:41.2]} 14... Nf6 {[%clk 0:02:49.6]} 15. Qb3 {[%clk 0:02:38.1]}
15... b6 {[%clk 0:02:42.9]} 16. Rc1 {[%clk 0:02:34.5]} 16... Rfc8 {[%clk
0:02:39]} 17. Bxe4 {[%clk 0:02:24.2]} 17... Nxe4 {[%clk 0:02:39.8]} 18. Nf3
{[%clk 0:02:24.5]} 18... e6 {[%clk 0:02:18.1]} 19. Rfd1 {[%clk 0:02:20.4]} 19...
Qd5 {[%clk 0:02:15.3]} 20. Be1 {[%clk 0:02:14.8]} 20... Qxb3 {[%clk 0:02:13.5]}
21. axb3 {[%clk 0:02:16.7]} 21... c5 {[%clk 0:02:14.8]} 22. Bc3 {[%clk
0:01:42.6]} 22... a5 {[%clk 0:02:10.2]} 23. Kf1 {[%clk 0:01:31.1]} 23... b5
{[%clk 0:01:59.5]} 24. Ke2 {[%clk 0:01:04.1]} 24... f5 {[%clk 0:01:48.3]} 25. d5
{[%clk 0:00:40.8]} 25... exd5 {[%clk 0:01:45.2]} 26. Rxd5 {[%clk 0:00:41.4]}
26... Bxc3 {[%clk 0:01:11.8]} 27. bxc3 {[%clk 0:00:43.3]} 27... b4 {[%clk
0:01:13.4]} 28. cxb4 {[%clk 0:00:38.6]} 28... axb4 {[%clk 0:01:10.8]} 29. Ke1
{[%clk 0:00:34.7]} 29... Ra2 {[%clk 0:01:10.3]} 30. Nd2 {[%clk 0:00:34.9]} 30...
Nc3 {[%clk 0:01:07.5]} 31. Rd7 {[%clk 0:00:35.5]} 31... Rca8 {[%clk 0:00:53.5]}
32. h4 {[%clk 0:00:18.8]} 32... Rc2 {[%clk 0:00:50.7]} 33. Rd8+ {[%clk 0:00:11]}
33... Kf7 {[%clk 0:00:51.5]} 0-1

[Event "*** Titled Tuesday Blitz AM"]
[Site "Chess.com"]
[Date "2020.01.07"]
[Round "5"]
[White "TBergh98"]
[Black "zurzan"]
[Result "1-0"]
[WhiteElo "2362"]
[BlackElo "1962"]
[TimeControl "180+2"]
[EndTime "10:06:06 PST"]
[Termination "TBergh98 won by resignation"]

1. d4 {[%clk 0:03:01.9]} 1... f5 {[%clk 0:03:00.3]} 2. e4 {[%clk 0:03:02.4]}
2... fxe4 {[%clk 0:02:59.6]} 3. Nc3 {[%clk 0:03:03]} 3... Nf6 {[%clk 0:02:59.8]}
4. Bg5 {[%clk 0:03:04.4]} 4... g6 {[%clk 0:02:51.2]} 5. Bxf6 {[%clk 0:03:03.8]}
5... exf6 {[%clk 0:02:51.7]} 6. Nxe4 {[%clk 0:03:05.4]} 6... Qe7 {[%clk
0:02:49.6]} 7. Qe2 {[%clk 0:03:04.4]} 7... Bg7 {[%clk 0:02:37]} 8. O-O-O {[%clk
0:03:04.3]} 8... d5 {[%clk 0:02:32.1]} 9. Ng3 {[%clk 0:02:51.3]} 9... Qxe2
{[%clk 0:02:32]} 10. Bxe2 {[%clk 0:02:53.2]} 10... O-O {[%clk 0:02:29.4]} 11. h4
{[%clk 0:02:51.7]} 11... h5 {[%clk 0:02:23.9]} 12. Bd3 {[%clk 0:02:51.8]} 12...
f5 {[%clk 0:02:11.5]} 13. c3 {[%clk 0:02:52.5]} 13... Nd7 {[%clk 0:02:04.1]} 14.
Nh3 {[%clk 0:02:51.1]} 14... Nf6 {[%clk 0:02:00.7]} 15. f3 {[%clk 0:02:45.1]}
15... Kh7 {[%clk 0:02:00.4]} 16. Ng5+ {[%clk 0:02:41]} 16... Kg8 {[%clk
0:01:59.5]} 17. Rhe1 {[%clk 0:02:42.4]} 17... Bd7 {[%clk 0:01:45]} 18. Ne2
{[%clk 0:02:25.8]} 18... Rae8 {[%clk 0:01:40.1]} 19. Nf4 {[%clk 0:02:27.1]}
19... Bh6 {[%clk 0:01:26.8]} 20. Nxg6 {[%clk 0:02:25.7]} 20... Rxe1 {[%clk
0:01:20.1]} 21. Rxe1 {[%clk 0:02:27.6]} 21... Re8 {[%clk 0:01:11.6]} 22. Rxe8+
{[%clk 0:02:27.5]} 22... Nxe8 {[%clk 0:01:12.4]} 23. Ne7+ {[%clk 0:02:26.4]}
23... Kg7 {[%clk 0:01:12.2]} 24. Nxf5+ {[%clk 0:02:27.6]} 24... Bxf5 {[%clk
0:01:12.1]} 25. Bxf5 {[%clk 0:02:29.5]} 25... Nd6 {[%clk 0:01:08.6]} 26. Be6
{[%clk 0:02:21.4]} 26... c6 {[%clk 0:01:07.7]} 27. Kb1 {[%clk 0:02:12.2]} 27...
Kf6 {[%clk 0:00:59.6]} 28. Bh3 {[%clk 0:02:08.7]} 28... Bxg5 {[%clk 0:00:59.9]}
29. hxg5+ {[%clk 0:02:10.6]} 29... Kxg5 {[%clk 0:01:01.7]} 30. Kc2 {[%clk
0:02:08.8]} 30... Kf4 {[%clk 0:01:01.9]} 31. Kd3 {[%clk 0:02:07.2]} 31... h4
{[%clk 0:01:01.6]} 32. b3 {[%clk 0:02:07.9]} 32... Nf7 {[%clk 0:00:33.4]} 33.
Ke2 {[%clk 0:02:02.1]} 33... Kg3 {[%clk 0:00:33.9]} 34. Kf1 {[%clk 0:01:59.3]}
34... b6 {[%clk 0:00:32.4]} 35. Bd7 {[%clk 0:01:53.3]} 35... Nd8 {[%clk
0:00:33.3]} 36. Bh3 {[%clk 0:01:48.6]} 36... Nf7 {[%clk 0:00:30.7]} 37. b4
{[%clk 0:01:49.7]} 37... Ng5 {[%clk 0:00:27.8]} 38. Bd7 {[%clk 0:01:45.8]} 38...
c5 {[%clk 0:00:09.2]} 39. bxc5 {[%clk 0:01:46.7]} 39... bxc5 {[%clk 0:00:11.1]}
40. dxc5 {[%clk 0:01:48.6]} 40... Nf7 {[%clk 0:00:05.7]} 41. c6 {[%clk
0:01:48.3]} 41... Nd6 {[%clk 0:00:05.1]} 42. c7 {[%clk 0:01:49]} 42... Kf4
{[%clk 0:00:05]} 43. c8=Q {[%clk 0:01:49.8]} 43... Nxc8 {[%clk 0:00:05.3]} 44.
Bxc8 {[%clk 0:01:51.7]} 44... Ke3 {[%clk 0:00:06.2]} 45. Be6 {[%clk 0:01:52.6]}
45... d4 {[%clk 0:00:06.3]} 46. cxd4 {[%clk 0:01:53.5]} 46... Kxd4 {[%clk
0:00:08.2]} 47. Kg1 {[%clk 0:01:54.8]} 47... Kc3 {[%clk 0:00:09.1]} 48. Kh2
{[%clk 0:01:55.9]} 48... a5 {[%clk 0:00:11]} 49. Kh3 {[%clk 0:01:57]} 49... a4
{[%clk 0:00:12.2]} 50. Kxh4 {[%clk 0:01:58.2]} 1-0

[Event "*** Titled Tuesday Blitz AM"]
[Site "Chess.com"]
[Date "2020.01.07"]
[Round "5"]
[White "dolynachess"]
[Black "Anna_ChessMate"]
[Result "0-1"]
[WhiteElo "2371"]
[BlackElo "2590"]
[TimeControl "180+2"]
[EndTime "10:06:22 PST"]
[Termination "Anna_ChessMate won on time"]

1. d4 {[%clk 0:03:01.9]} 1... d5 {[%clk 0:02:52.1]} 2. c4 {[%clk 0:03:02.9]}
2... c6 {[%clk 0:02:52.4]} 3. Nc3 {[%clk 0:03:02.9]} 3... Nf6 {[%clk 0:02:52.5]}
4. cxd5 {[%clk 0:03:04.8]} 4... cxd5 {[%clk 0:02:53.4]} 5. Bf4 {[%clk
0:03:06.3]} 5... Nc6 {[%clk 0:02:54.7]} 6. Nf3 {[%clk 0:03:05.8]} 6... Bf5
{[%clk 0:02:53.6]} 7. e3 {[%clk 0:02:59.8]} 7... e6 {[%clk 0:02:51.7]} 8. Bd3
{[%clk 0:02:48.5]} 8... Bxd3 {[%clk 0:02:46.4]} 9. Qxd3 {[%clk 0:02:50.4]} 9...
Bd6 {[%clk 0:02:47.5]} 10. Bg5 {[%clk 0:02:50.7]} 10... h6 {[%clk 0:02:44.6]}
11. Bh4 {[%clk 0:02:51.4]} 11... O-O {[%clk 0:02:45.1]} 12. O-O {[%clk
0:02:51.5]} 12... a6 {[%clk 0:02:45.5]} 13. Rfc1 {[%clk 0:02:49.8]} 13... Rc8
{[%clk 0:02:46.6]} 14. Na4 {[%clk 0:02:44.4]} 14... g5 {[%clk 0:02:36.4]} 15.
Bg3 {[%clk 0:02:44.7]} 15... Ne4 {[%clk 0:02:37.8]} 16. a3 {[%clk 0:02:09.1]}
16... Ne7 {[%clk 0:02:30]} 17. b4 {[%clk 0:02:03.3]} 17... b6 {[%clk 0:02:23.2]}
18. Qxa6 {[%clk 0:01:56.5]} 18... Ra8 {[%clk 0:02:22.7]} 19. Qb5 {[%clk
0:01:56.8]} 19... Bxg3 {[%clk 0:02:19.9]} 20. hxg3 {[%clk 0:01:57.3]} 20... Nd6
{[%clk 0:02:20.8]} 21. Qxb6 {[%clk 0:01:46.1]} 21... Rxa4 {[%clk 0:02:21.2]} 22.
Rc7 {[%clk 0:01:10.6]} 22... Nc4 {[%clk 0:02:18.6]} 23. Qb7 {[%clk 0:01:08.9]}
23... Nf5 {[%clk 0:02:11.2]} 24. Ne5 {[%clk 0:00:59.9]} 24... Nfd6 {[%clk
0:02:08.2]} 25. Qc6 {[%clk 0:00:57.2]} 25... Ra6 {[%clk 0:01:59.9]} 26. Qxa6
{[%clk 0:00:42.6]} 26... Qxc7 {[%clk 0:01:59.3]} 27. b5 {[%clk 0:00:34.9]} 27...
Nxe5 {[%clk 0:01:56.7]} 28. dxe5 {[%clk 0:00:34]} 28... Nc4 {[%clk 0:01:58.2]}
29. a4 {[%clk 0:00:21.7]} 29... Qxe5 {[%clk 0:01:56.3]} 30. Rb1 {[%clk
0:00:21.7]} 30... Nd2 {[%clk 0:01:52]} 31. Rd1 {[%clk 0:00:20.7]} 31... Ne4
{[%clk 0:01:51.9]} 32. b6 {[%clk 0:00:21.4]} 32... Qb2 {[%clk 0:01:53.2]} 33.
Rf1 {[%clk 0:00:22.1]} 33... Rb8 {[%clk 0:01:53.5]} 34. a5 {[%clk 0:00:22.4]}
34... Nd2 {[%clk 0:01:50]} 35. Qa7 {[%clk 0:00:22.1]} 35... Qe5 {[%clk
0:01:41.4]} 36. Rc1 {[%clk 0:00:19.8]} 36... Nc4 {[%clk 0:01:42.7]} 37. Rb1
{[%clk 0:00:18.2]} 37... Qd6 {[%clk 0:01:41]} 38. Rb5 {[%clk 0:00:14.1]} 38...
Qd8 {[%clk 0:01:40.1]} 39. Qc7 {[%clk 0:00:08.3]} 39... Nd6 {[%clk 0:01:16.2]}
40. Qxd8+ {[%clk 0:00:05.1]} 40... Rxd8 {[%clk 0:01:18.1]} 41. Rc5 {[%clk
0:00:02.8]} 41... Nb7 {[%clk 0:01:18.4]} 42. Rb5 {[%clk 0:00:03.4]} 42... Ra8
{[%clk 0:01:18.6]} 0-1

[Event "*** Titled Tuesday Blitz AM"]
[Site "Chess.com"]
[Date "2020.01.07"]
[Round "5"]
[White "RubensCezila"]
[Black "garfield_pg"]
[Result "0-1"]
[WhiteElo "2578"]
[BlackElo "2381"]
[TimeControl "180+2"]
[EndTime "10:06:34 PST"]
[Termination "garfield_pg won by checkmate"]

1. b3 {[%clk 0:03:01.3]} 1... c5 {[%clk 0:02:58.8]} 2. Bb2 {[%clk 0:03:01.7]}
2... Nc6 {[%clk 0:03:00.3]} 3. e3 {[%clk 0:03:02.4]} 3... d5 {[%clk 0:02:57.1]}
4. Bb5 {[%clk 0:03:02.2]} 4... a6 {[%clk 0:02:43.9]} 5. Bxc6+ {[%clk 0:03:01.3]}
5... bxc6 {[%clk 0:02:45.8]} 6. f4 {[%clk 0:03:00.6]} 6... Nf6 {[%clk
0:02:41.5]} 7. Nf3 {[%clk 0:03:01.5]} 7... Bg4 {[%clk 0:02:39.9]} 8. h3 {[%clk
0:03:02]} 8... Bxf3 {[%clk 0:02:40.9]} 9. Qxf3 {[%clk 0:03:03.9]} 9... e6 {[%clk
0:02:42]} 10. d3 {[%clk 0:03:01.6]} 10... Be7 {[%clk 0:02:34.6]} 11. g4 {[%clk
0:02:59.2]} 11... O-O {[%clk 0:02:35]} 12. g5 {[%clk 0:02:54.2]} 12... Nd7
{[%clk 0:02:34.3]} 13. h4 {[%clk 0:02:53.4]} 13... c4 {[%clk 0:02:35.3]} 14.
bxc4 {[%clk 0:02:42.6]} 14... dxc4 {[%clk 0:02:30.9]} 15. e4 {[%clk 0:01:43.3]}
15... cxd3 {[%clk 0:02:21.5]} 16. cxd3 {[%clk 0:01:40.2]} 16... Qb6 {[%clk
0:02:10.2]} 17. Bc3 {[%clk 0:01:32.5]} 17... Bb4 {[%clk 0:02:02.8]} 18. Qf2
{[%clk 0:01:17.8]} 18... Qa5 {[%clk 0:01:19.1]} 19. Qd2 {[%clk 0:01:10.1]} 19...
Nc5 {[%clk 0:01:14.7]} 20. Rh3 {[%clk 0:00:56.5]} 20... Bxc3 {[%clk 0:01:05]}
21. Qxc3 {[%clk 0:00:55.5]} 21... Qb5 {[%clk 0:01:02]} 22. Nd2 {[%clk
0:00:52.7]} 22... Rfd8 {[%clk 0:01:00.1]} 23. Nc4 {[%clk 0:00:49.4]} 23... Na4
{[%clk 0:00:52.8]} 24. Qc2 {[%clk 0:00:26.8]} 24... Rab8 {[%clk 0:00:50.7]} 25.
h5 {[%clk 0:00:21.5]} 25... Qc5 {[%clk 0:00:41.2]} 26. Rh1 {[%clk 0:00:07.7]}
26... Rb2 {[%clk 0:00:27.8]} 27. Qxa4 {[%clk 0:00:03.6]} 27... Qf2+ {[%clk
0:00:19]} 28. Kd1 {[%clk 0:00:05]} 28... Rxd3+ {[%clk 0:00:15.7]} 29. Kc1 {[%clk
0:00:06.4]} 29... Rc3+ {[%clk 0:00:15.4]} 30. Kd1 {[%clk 0:00:07.8]} 30... Qe2#
{[%clk 0:00:15.8]} 0-1

[Event "*** Titled Tuesday Blitz AM"]
[Site "Chess.com"]
[Date "2020.01.07"]
[Round "5"]
[White "Mikasinski"]
[Black "IMRosen"]
[Result "0-1"]
[WhiteElo "2316"]
[BlackElo "2571"]
[TimeControl "180+2"]
[EndTime "10:06:38 PST"]
[Termination "IMRosen won by checkmate"]

1. e4 {[%clk 0:03:01.9]} 1... c5 {[%clk 0:03:00.5]} 2. Nf3 {[%clk 0:03:02.6]}
2... e6 {[%clk 0:03:01.7]} 3. d4 {[%clk 0:03:03.6]} 3... cxd4 {[%clk 0:03:03.2]}
4. Nxd4 {[%clk 0:03:05]} 4... Nc6 {[%clk 0:03:04.7]} 5. Nc3 {[%clk 0:03:06]}
5... Qc7 {[%clk 0:03:05.6]} 6. Be2 {[%clk 0:03:06.5]} 6... a6 {[%clk 0:03:06]}
7. O-O {[%clk 0:03:04.8]} 7... Nf6 {[%clk 0:03:07.3]} 8. Be3 {[%clk 0:03:04.3]}
8... Bb4 {[%clk 0:03:07.7]} 9. Na4 {[%clk 0:03:04.7]} 9... O-O {[%clk
0:03:07.4]} 10. Nxc6 {[%clk 0:02:59.5]} 10... bxc6 {[%clk 0:03:07.7]} 11. Nb6
{[%clk 0:03:00.1]} 11... Rb8 {[%clk 0:03:08.7]} 12. Nxc8 {[%clk 0:03:00.9]}
12... Rfxc8 {[%clk 0:03:10.6]} 13. Qd4 {[%clk 0:02:31.1]} 13... Bd6 {[%clk
0:02:57.7]} 14. f4 {[%clk 0:02:26]} 14... e5 {[%clk 0:02:52.5]} 15. fxe5 {[%clk
0:02:14.1]} 15... Bxe5 {[%clk 0:02:53.3]} 16. Qa4 {[%clk 0:02:06.7]} 16... Rxb2
{[%clk 0:02:42]} 17. Rab1 {[%clk 0:01:31.6]} 17... Bxh2+ {[%clk 0:02:10.5]} 18.
Kh1 {[%clk 0:01:30.8]} 18... Rxb1 {[%clk 0:01:59.9]} 19. Rxb1 {[%clk 0:01:29.5]}
19... Qg3 {[%clk 0:01:50.3]} 20. Bf3 {[%clk 0:01:07.6]} 20... Qh4 {[%clk
0:01:20.8]} 21. Bg5 {[%clk 0:00:45]} 21... Qxg5 {[%clk 0:01:21.1]} 22. Kxh2
{[%clk 0:00:46]} 22... Qf4+ {[%clk 0:01:13.3]} 23. Kg1 {[%clk 0:00:06.4]} 23...
Qe3+ {[%clk 0:01:12.3]} 24. Kh2 {[%clk 0:00:04.6]} 24... Qf4+ {[%clk 0:01:13]}
25. Kg1 {[%clk 0:00:04.9]} 25... Re8 {[%clk 0:01:14.6]} 26. Qxa6 {[%clk
0:00:05]} 26... Qe3+ {[%clk 0:01:16.1]} 27. Kh2 {[%clk 0:00:05.4]} 27... h5
{[%clk 0:01:12.4]} 28. Qf1 {[%clk 0:00:05]} 28... Ng4+ {[%clk 0:00:47.1]} 29.
Bxg4 {[%clk 0:00:04.7]} 29... hxg4 {[%clk 0:00:49]} 30. Re1 {[%clk 0:00:05.6]}
30... Qh6+ {[%clk 0:00:35]} 31. Kg3 {[%clk 0:00:04.3]} 31... g5 {[%clk
0:00:21.7]} 32. Qh1 {[%clk 0:00:03.3]} 32... Qd6+ {[%clk 0:00:22]} 33. Kxg4
{[%clk 0:00:02.8]} 33... Qf4+ {[%clk 0:00:22.8]} 34. Kh5 {[%clk 0:00:03.3]}
34... Kg7 {[%clk 0:00:22.3]} 35. g4 {[%clk 0:00:02.7]} 35... Rh8# {[%clk
0:00:23.3]} 0-1

[Event "*** Titled Tuesday Blitz AM"]
[Site "Chess.com"]
[Date "2020.01.07"]
[Round "5"]
[White "chigorin28"]
[Black "hazy13"]
[Result "1-0"]
[WhiteElo "2407"]
[BlackElo "2221"]
[TimeControl "180+2"]
[EndTime "10:06:39 PST"]
[Termination "chigorin28 won by resignation"]

1. e4 {[%clk 0:03:01.9]} 1... c5 {[%clk 0:02:59.7]} 2. Nf3 {[%clk 0:03:02.5]}
2... g6 {[%clk 0:03:00.6]} 3. c3 {[%clk 0:03:02.2]} 3... Nf6 {[%clk 0:03:01.5]}
4. Bd3 {[%clk 0:03:01.6]} 4... Nc6 {[%clk 0:03:01.7]} 5. Bc2 {[%clk 0:03:02.9]}
5... Bg7 {[%clk 0:03:02.7]} 6. O-O {[%clk 0:03:03.7]} 6... d6 {[%clk 0:03:00]}
7. Re1 {[%clk 0:03:04.7]} 7... O-O {[%clk 0:02:59.7]} 8. h3 {[%clk 0:03:06.1]}
8... Rb8 {[%clk 0:02:54.2]} 9. d4 {[%clk 0:03:04.8]} 9... cxd4 {[%clk 0:02:54]}
10. cxd4 {[%clk 0:03:06.2]} 10... Bd7 {[%clk 0:02:49.3]} 11. Nc3 {[%clk
0:03:07]} 11... Rc8 {[%clk 0:02:47.4]} 12. Bb3 {[%clk 0:03:06]} 12... a6 {[%clk
0:02:34.2]} 13. Qe2 {[%clk 0:03:06.5]} 13... b5 {[%clk 0:02:34.1]} 14. e5 {[%clk
0:03:05.1]} 14... Ne8 {[%clk 0:02:14.2]} 15. e6 {[%clk 0:03:01]} 15... Bxe6
{[%clk 0:02:13.2]} 16. Bxe6 {[%clk 0:03:02.9]} 16... fxe6 {[%clk 0:02:14.3]} 17.
Qxe6+ {[%clk 0:03:03.2]} 17... Kh8 {[%clk 0:02:13.9]} 18. Be3 {[%clk 0:03:01.6]}
18... Nc7 {[%clk 0:02:00.5]} 19. Qg4 {[%clk 0:03:02.5]} 19... Nb4 {[%clk
0:01:51.6]} 20. Red1 {[%clk 0:02:39]} 20... Nc2 {[%clk 0:01:47.7]} 21. Rac1
{[%clk 0:02:40.1]} 21... Nxe3 {[%clk 0:01:48.6]} 22. fxe3 {[%clk 0:02:42]} 22...
b4 {[%clk 0:01:32.5]} 23. Ne4 {[%clk 0:02:40.5]} 23... Nd5 {[%clk 0:01:33.4]}
24. Neg5 {[%clk 0:02:37.3]} 24... Rxc1 {[%clk 0:01:07.6]} 25. Rxc1 {[%clk
0:02:35.5]} 25... Nxe3 {[%clk 0:00:59.8]} 26. Qh4 {[%clk 0:02:25.9]} 26... h6
{[%clk 0:00:49.8]} 27. Ne6 {[%clk 0:02:26.6]} 27... Qe8 {[%clk 0:00:32.4]} 28.
Nxf8 {[%clk 0:02:25]} 28... Qxf8 {[%clk 0:00:33.6]} 29. Qe4 {[%clk 0:02:24.8]}
29... Nf5 {[%clk 0:00:32.8]} 30. Rc7 {[%clk 0:02:19.1]} 30... Kh7 {[%clk
0:00:21.2]} 31. g4 {[%clk 0:02:16.1]} 31... Ng3 {[%clk 0:00:14]} 32. Qxe7 {[%clk
0:02:10.8]} 32... Kg8 {[%clk 0:00:03.9]} 33. Qxf8+ {[%clk 0:02:07.1]} 33... Kxf8
{[%clk 0:00:05]} 34. Kg2 {[%clk 0:02:07.5]} 34... Ne2 {[%clk 0:00:05.6]} 35. Ra7
{[%clk 0:02:04.7]} 35... Nxd4 {[%clk 0:00:03.8]} 36. Rxa6 {[%clk 0:02:00.1]}
36... Nxf3 {[%clk 0:00:03.3]} 37. Kxf3 {[%clk 0:02:02]} 37... Bxb2 {[%clk
0:00:04.5]} 38. Rxd6 {[%clk 0:02:02.9]} 38... Kg7 {[%clk 0:00:03.4]} 39. Ke4
{[%clk 0:02:02.1]} 39... Bc3 {[%clk 0:00:04.6]} 40. h4 {[%clk 0:02:01.5]} 40...
Kf7 {[%clk 0:00:03.4]} 41. Rc6 {[%clk 0:01:56.1]} 41... Kg7 {[%clk 0:00:04.3]}
42. g5 {[%clk 0:01:56.4]} 42... hxg5 {[%clk 0:00:05.2]} 43. hxg5 {[%clk
0:01:57.8]} 43... Kf7 {[%clk 0:00:05.7]} 44. a4 {[%clk 0:01:48.1]} 44... Bd2
{[%clk 0:00:05.1]} 45. Rc7+ {[%clk 0:01:43.4]} 45... Ke6 {[%clk 0:00:05.3]} 46.
Rg7 {[%clk 0:01:44.5]} 46... Bxg5 {[%clk 0:00:04]} 47. Rxg6+ {[%clk 0:01:45.4]}
47... Bf6 {[%clk 0:00:05.5]} 48. Kd3 {[%clk 0:01:45.5]} 48... Kf7 {[%clk
0:00:06.5]} 49. Rg4 {[%clk 0:01:46.1]} 49... b3 {[%clk 0:00:07.4]} 50. Re4
{[%clk 0:01:41.3]} 50... b2 {[%clk 0:00:08.3]} 51. Kc2 {[%clk 0:01:42.6]} 51...
Kg6 {[%clk 0:00:05.9]} 52. a5 {[%clk 0:01:43.9]} 52... Kf5 {[%clk 0:00:07.3]}
53. Re2 {[%clk 0:01:44.7]} 53... Bd4 {[%clk 0:00:06.5]} 54. a6 {[%clk
0:01:46.1]} 54... Kf4 {[%clk 0:00:06.8]} 55. Re7 {[%clk 0:01:45.5]} 55... Bc5
{[%clk 0:00:05.8]} 56. Rf7+ {[%clk 0:01:43.8]} 56... Ke5 {[%clk 0:00:06.3]} 57.
a7 {[%clk 0:01:45.7]} 57... b1=Q+ {[%clk 0:00:05.2]} 58. Kxb1 {[%clk 0:01:46]}
1-0